[Event "ESP-ch Rapid 2018"]
[Site "Linares"]
[Date "2018.08.19"]
[Round "9"]
[White "Domingo Nunez, Ruben"]
[Black "Centron Antuna, Daniel"]
[Result "0-1"]
[ECO "B21"]
[WhiteElo "2318"]
[BlackElo "2231"]
[Annotator "NA"]
[PlyCount "102"]
[EventDate "2018.08.19"]
[EventType "team-tourn"]
[EventCountry "ESP"]
[SourceTitle "playchess.com"]
[Source "ChessBase"]
[SourceQuality "1"]
[TimeControl "900+5"]

1. e4 {[%emt 0:00:00]} c5 {[%emt 0:00:00]} 2. d4 {[%emt 0:00:01]} cxd4 {[%emt 0:00:00]} 3. c3 {[%emt 0:00:01]} dxc3 {[%emt 0:00:00]} 4. Nxc3 {[%emt 0:00:01]} Nc6 {[%emt 0:00:00]} 5. Nf3 {[%emt 0:00:02]} d6 {[%emt 0:00:01]} 6. Bc4 {[%emt 0:00:01]} e6 {[%emt 0:00:02]} 7. O-O {[%emt 0:00:03]} Nf6 {[%emt 0:00:01]} 8. Qe2 {[%emt 0:00:04]} Be7 {[%emt 0:00:06]} 9. Rd1 {[%emt 0:00:01]} e5 {[%emt 0:00:05]} 10. Be3 {[%emt 0:00:20]} O-O {[%emt 0:00:03]} 11. Rac1 {[%emt 0:00:24]} Be6 {[%emt 0:00:08]} 12. b4 {[%emt 0:00:17]} a6 {[%emt 0:00:51]} 13. Nd5 {[%emt 0:00:06]} Bxd5 {[%emt 0:00:46]} 14. exd5 {[%emt 0:00:02]} Nb8 {[%emt 0:00:07]} 15. a4 {[%emt 0:00:31]} Nbd7 {[%emt 0:00:12]} 16. Nd2 {[%emt 0:00:53]} Nb6 {[%emt 0:00:29]} 17. Bb3 {[%emt 0:00:53]} Nbxd5 {[%emt 0:00:30]} 18. Bg5 {[%emt 0:00:13]} h6 {[%emt 0:00:15]} 19. Bh4 {[%emt 0:01:40]} Nxb4 {[%emt 0:01:00]} 20. Bxf6 {[%emt 0:02:55]} Bxf6 {[%emt 0:00:01]} 21. Ne4 {[%emt 0:00:01]} Be7 {[%emt 0:00:13]} 22. Qg4 {[%emt 0:00:42]} Nc6 {[%emt 0:01:14]} 23. Rc3 {[%emt 0:00:44]} Kh8 {[%emt 0:03:25]} 24. Rg3 {[%emt 0:01:08]} g6 {[%emt 0:00:07]} 25. Qh3 {[%emt 0:02:58]} Kg7 {[%emt 0:00:19]} 26. Qg4 {[%emt 0:00:02]} Qc8 {[%emt 0:00:19]} 27. Qh5 {[%emt 0:01:17]} Bg5 {[%emt 0:01:13]} 28. Qe2 {[%emt 0:00:31]} Nd4 {[%emt 0:00:20]} 29. Qd3 {[%emt 0:00:01]} Bf4 {[%emt 0:01:37]} 30. Rh3 {[%emt 0:00:01]} Qf5 {[%emt 0:00:32]} 31. Bd5 {[%emt 0:00:25]} Rab8 {[%emt 0:00:07]} 32. Qa3 {[%emt 0:00:54]} Rfd8 {[%emt 0:00:33]} 33. Rhd3 {[%emt 0:00:12]} Qd7 {[%emt 0:00:38]} 34. g3 {[%emt 0:00:16]} Bg5 {[%emt 0:00:09]} 35. Qa1 {[%emt 0:00:07]} Qe7 {[%emt 0:00:51]} 36. h4 {[%emt 0:00:05]} Bf6 {[%emt 0:00:03]} 37. Qa2 {[%emt 0:00:05]} b5 {[%emt 0:00:11]} 38. a5 {[%emt 0:00:00]} Rbc8 {[%emt 0:00:05]} 39. Re1 {[%emt 0:00:10]} Rc2 {[%emt 0:00:08]} 40. Qb1 {[%emt 0:00:02]} Rdc8 {[%emt 0:00:07]} 41. Qd1 {[%emt 0:00:08]} Rc1 {[%emt 0:00:08]} 42. Qd2 {[%emt 0:00:04]} Rxe1+ {[%emt 0:00:04]} 43. Qxe1 {[%emt 0:00:02]} Rc1 {[%emt 0:00:04]} 44. Rd1 {[%emt 0:00:00]} Nf3+ {[%emt 0:00:02]} 45. Kh1 {[%emt 0:00:04]} Nxe1 {[%emt 0:00:09]} 46. Rxc1 {[%emt 0:00:01]} Nd3 {[%emt 0:00:13]} 47. Rc6 {[%emt 0:00:00]} Nb4 {[%emt 0:00:15]} 48. Rxd6 {[%emt 0:00:01]} Nxd5 {[%emt 0:00:06]} 49. Rxd5 {[%emt 0:00:00]} Qb4 {[%emt 0:00:07]} 50. Nd6 {[%emt 0:00:13]} Be7 {[%emt 0:00:13]} 51. Nb7 {[%emt 0:00:10]} Qe4+ {[%emt 0:00:03]} 0-1

[Event "ESP-ch Rapid 2018"]
[Site "Linares"]
[Date "2018.08.19"]
[Round "9"]
[White "Martin Rueda, Daniel"]
[Black "Orantes Taboada, Francisco"]
[Result "1/2-1/2"]
[ECO "A45"]
[WhiteElo "2267"]
[BlackElo "2242"]
[Annotator "NA"]
[PlyCount "70"]
[EventDate "2018.08.19"]
[EventType "team-tourn"]
[EventCountry "ESP"]
[SourceTitle "playchess.com"]
[Source "ChessBase"]
[SourceQuality "1"]
[TimeControl "900+5"]

1. d4 {[%emt 0:00:00]} Nf6 {[%emt 0:00:00]} 2. Bg5 {[%emt 0:00:00]} d5 {[%emt 0:00:11]} 3. Bxf6 {[%emt 0:00:01]} exf6 {[%emt 0:00:02]} 4. e3 {[%emt 0:00:05]} Bd6 {[%emt 0:00:12]} 5. g3 {[%emt 0:00:17]} O-O {[%emt 0:00:07]} 6. Bg2 {[%emt 0:00:02]} Be6 {[%emt 0:00:10]} 7. Ne2 {[%emt 0:00:04]} c6 {[%emt 0:00:03]} 8. Nd2 {[%emt 0:00:05]} Nd7 {[%emt 0:00:09]} 9. b3 {[%emt 0:00:58]} Nb6 {[%emt 0:00:16]} 10. O-O {[%emt 0:00:29]} Qe7 {[%emt 0:00:08]} 11. a4 {[%emt 0:00:47]} a5 {[%emt 0:00:25]} 12. c3 {[%emt 0:00:05]} Rac8 {[%emt 0:00:10]} 13. Qb1 {[%emt 0:04:59]} Rfd8 {[%emt 0:01:25]} 14. Re1 {[%emt 0:01:25]} c5 {[%emt 0:01:39]} 15. dxc5 {[%emt 0:00:39]} Rxc5 {[%emt 0:00:28]} 16. Nf3 {[%emt 0:00:13]} Rdc8 {[%emt 0:00:59]} 17. Nfd4 {[%emt 0:00:11]} Be5 {[%emt 0:00:12]} 18. Qd3 {[%emt 0:00:15]} Bg4 {[%emt 0:01:22]} 19. Rac1 {[%emt 0:01:36]} Qd7 {[%emt 0:00:33]} 20. Nb5 {[%emt 0:00:31]} Bf5 {[%emt 0:02:32]} 21. Qd2 {[%emt 0:00:01]} Qe8 {[%emt 0:00:08]} 22. Ned4 {[%emt 0:00:06]} Bd7 {[%emt 0:00:02]} 23. Bf1 {[%emt 0:00:26]} Bxb5 {[%emt 0:01:36]} 24. Bxb5 {[%emt 0:00:01]} Qe7 {[%emt 0:00:10]} 25. Bd3 {[%emt 0:00:20]} g6 {[%emt 0:00:06]} 26. f4 {[%emt 0:00:33]} Bd6 {[%emt 0:00:18]} 27. e4 {[%emt 0:00:50]} dxe4 {[%emt 0:01:51]} 28. Rxe4 {[%emt 0:00:02]} Qd8 {[%emt 0:00:49]} 29. Rce1 {[%emt 0:00:39]} Bf8 {[%emt 0:00:05]} 30. Nb5 {[%emt 0:00:26]} Rd5 {[%emt 0:00:06]} 31. Nd4 {[%emt 0:00:46]} Qc7 {[%emt 0:00:39]} 32. Nb5 {[%emt 0:00:12]} Qd8 {[%emt 0:00:20]} 33. Nd4 {[%emt 0:00:01]} Qc7 {[%emt 0:00:04]} 34. Nb5 {[%emt 0:00:01]} Qd8 {[%emt 0:00:14]} 35. Nd4 {[%emt 0:00:12]} Qc7 {[%emt 0:00:02]} 1/2-1/2

[Event "ESP-ch Rapid 2018"]
[Site "Linares"]
[Date "2018.08.19"]
[Round "9"]
[White "Jimenez Martinez, Jose Vicente"]
[Black "Pallardo Lozoya, Jose Vicente"]
[Result "0-1"]
[ECO "A41"]
[WhiteElo "2243"]
[BlackElo "2382"]
[Annotator "NA"]
[PlyCount "64"]
[EventDate "2018.08.19"]
[EventType "team-tourn"]
[EventCountry "ESP"]
[SourceTitle "playchess.com"]
[Source "ChessBase"]
[SourceQuality "1"]
[TimeControl "900+5"]

1. d4 {[%emt 0:00:00]} d6 {[%emt 0:00:00]} 2. c4 {[%emt 0:00:01]} e5 {[%emt 0:00:00]} 3. Nf3 {[%emt 0:00:03]} e4 {[%emt 0:00:35]} 4. Ng5 {[%emt 0:00:02]} f5 {[%emt 0:00:41]} 5. g3 {[%emt 0:00:03]} Be7 {[%emt 0:00:07]} 6. Nh3 {[%emt 0:00:03]} Nf6 {[%emt 0:01:23]} 7. Bg2 {[%emt 0:00:02]} c6 {[%emt 0:01:47]} 8. O-O {[%emt 0:00:40]} d5 {[%emt 0:00:22]} 9. cxd5 {[%emt 0:00:34]} cxd5 {[%emt 0:00:04]} 10. Nc3 {[%emt 0:00:06]} Be6 {[%emt 0:00:25]} 11. Bf4 {[%emt 0:00:27]} Nc6 {[%emt 0:00:11]} 12. Be5 {[%emt 0:06:51]} Qd7 {[%emt 0:01:02]} 13. f3 {[%emt 0:00:20]} Rd8 {[%emt 0:01:29]} 14. e3 {[%emt 0:00:09]} exf3 {[%emt 0:01:42]} 15. Bxf3 {[%emt 0:00:25]} Nxe5 {[%emt 0:00:32]} 16. dxe5 {[%emt 0:00:02]} Ne4 {[%emt 0:00:01]} 17. Ne2 {[%emt 0:01:27]} Qc7 {[%emt 0:01:43]} 18. Qa4+ {[%emt 0:00:55]} Bd7 {[%emt 0:00:14]} 19. Qd4 {[%emt 0:00:21]} Bc6 {[%emt 0:01:01]} 20. Nhf4 {[%emt 0:00:37]} Qc8 {[%emt 0:01:04]} 21. Rac1 {[%emt 0:00:42]} O-O {[%emt 0:00:29]} 22. Rfd1 {[%emt 0:00:44]} g5 {[%emt 0:00:36]} 23. Nh5 {[%emt 0:00:02]} Qe6 {[%emt 0:00:03]} 24. Bxe4 {[%emt 0:00:59]} dxe4 {[%emt 0:00:30]} 25. Qc3 {[%emt 0:00:01]} Rxd1+ {[%emt 0:00:26]} 26. Rxd1 {[%emt 0:00:01]} Qg6 {[%emt 0:00:25]} 27. Nf6+ {[%emt 0:00:11]} Bxf6 {[%emt 0:00:05]} 28. Rd6 {[%emt 0:00:12]} Qh5 {[%emt 0:00:13]} 29. Qc4+ {[%emt 0:00:01]} Kh8 {[%emt 0:00:06]} 30. Rxf6 {[%emt 0:00:19]} Rd8 {[%emt 0:00:08]} 31. Rd6 {[%emt 0:00:01]} Re8 {[%emt 0:00:03]} 32. e6 {[%emt 0:00:03]} Qf3 0-1

[Event "ESP-ch Rapid 2018"]
[Site "Linares"]
[Date "2018.08.19"]
[Round "9"]
[White "Carretero Ortiz, Francisco"]
[Black "De La Fuente Gonzalez, Francisco"]
[Result "1-0"]
[ECO "C42"]
[WhiteElo "2241"]
[BlackElo "2174"]
[Annotator "NA"]
[PlyCount "55"]
[EventDate "2018.08.19"]
[EventType "team-tourn"]
[EventCountry "ESP"]
[SourceTitle "playchess.com"]
[Source "ChessBase"]
[SourceQuality "1"]
[TimeControl "900+5"]

1. e4 {[%emt 0:00:00]} e5 {[%emt 0:00:00]} 2. Nf3 {[%emt 0:00:00]} Nf6 {[%emt 0:00:00]} 3. Nc3 {[%emt 0:00:00]} Bb4 {[%emt 0:00:00]} 4. Nd5 {[%emt 0:00:22]} Nxd5 {[%emt 0:00:20]} 5. exd5 {[%emt 0:00:02]} d6 {[%emt 0:00:13]} 6. c3 {[%emt 0:00:02]} Bc5 {[%emt 0:00:05]} 7. d4 {[%emt 0:00:24]} exd4 {[%emt 0:00:13]} 8. Nxd4 {[%emt 0:00:10]} O-O {[%emt 0:00:25]} 9. Be3 {[%emt 0:00:29]} Nd7 {[%emt 0:00:30]} 10. Bd3 {[%emt 0:00:55]} Nf6 {[%emt 0:00:34]} 11. Qf3 {[%emt 0:00:51]} Bg4 {[%emt 0:00:58]} 12. Qg3 {[%emt 0:00:11]} Bh5 {[%emt 0:03:08]} 13. Nf5 {[%emt 0:00:48]} Bg6 {[%emt 0:00:22]} 14. Bxc5 {[%emt 0:00:18]} dxc5 {[%emt 0:00:06]} 15. O-O-O {[%emt 0:00:04]} Qd7 {[%emt 0:00:40]} 16. Ne3 {[%emt 0:00:26]} b5 {[%emt 0:00:32]} 17. Bc2 {[%emt 0:04:30]} a5 {[%emt 0:00:20]} 18. d6 {[%emt 0:00:02]} Bxc2 {[%emt 0:00:12]} 19. Kxc2 {[%emt 0:00:55]} Ne4 {[%emt 0:00:09]} 20. Qf3 {[%emt 0:00:34]} Nxd6 {[%emt 0:00:14]} 21. Rd5 {[%emt 0:00:05]} c4 {[%emt 0:00:46]} 22. Rhd1 {[%emt 0:00:07]} Qe6 {[%emt 0:00:24]} 23. R1d4 {[%emt 0:00:22]} a4 {[%emt 0:01:06]} 24. a3 {[%emt 0:01:00]} Rfe8 {[%emt 0:00:32]} 25. Kc1 {[%emt 0:00:26]} g6 {[%emt 0:01:30]} 26. Ng4 {[%emt 0:00:26]} Kg7 {[%emt 0:00:32]} 27. Re5 {[%emt 0:00:19]} Nf5 {[%emt 0:01:28]} 28. Rxe6 {[%emt 0:00:16]} 1-0

[Event "ESP-ch Rapid 2018"]
[Site "Linares"]
[Date "2018.08.19"]
[Round "9"]
[White "Silva Rodriguez, Fernando"]
[Black "Tejedor Fuente, Enrique"]
[Result "0-1"]
[ECO "E10"]
[WhiteElo "2239"]
[BlackElo "2408"]
[Annotator "NA"]
[PlyCount "124"]
[EventDate "2018.08.19"]
[EventType "team-tourn"]
[EventCountry "ESP"]
[SourceTitle "playchess.com"]
[Source "ChessBase"]
[SourceQuality "1"]
[TimeControl "900+5"]

1. d4 {[%emt 0:00:00]} c5 {[%emt 0:00:00]} 2. d5 {[%emt 0:00:00]} Nf6 {[%emt 0:00:16]} 3. c4 {[%emt 0:00:03]} b5 {[%emt 0:00:09]} 4. Nf3 {[%emt 0:00:04]} e6 {[%emt 0:00:12]} 5. Bg5 {[%emt 0:00:08]} h6 {[%emt 0:00:13]} 6. Bxf6 {[%emt 0:00:59]} Qxf6 {[%emt 0:00:02]} 7. Qc2 {[%emt 0:05:30]} exd5 {[%emt 0:01:34]} 8. cxd5 {[%emt 0:00:03]} d6 {[%emt 0:01:04]} 9. g3 {[%emt 0:00:24]} Na6 {[%emt 0:00:30]} 10. a3 {[%emt 0:00:41]} Nc7 {[%emt 0:00:16]} 11. Nc3 {[%emt 0:00:40]} Bb7 {[%emt 0:00:54]} 12. Rd1 {[%emt 0:00:14]} Be7 {[%emt 0:00:26]} 13. Bg2 {[%emt 0:00:03]} O-O {[%emt 0:00:09]} 14. O-O {[%emt 0:00:09]} Rfe8 {[%emt 0:00:33]} 15. Rfe1 {[%emt 0:00:21]} Bf8 {[%emt 0:00:12]} 16. e4 {[%emt 0:01:11]} Rad8 {[%emt 0:00:20]} 17. a4 {[%emt 0:00:49]} a6 {[%emt 0:00:14]} 18. axb5 {[%emt 0:00:04]} axb5 {[%emt 0:00:01]} 19. Ra1 {[%emt 0:00:01]} b4 {[%emt 0:00:25]} 20. Ra7 {[%emt 0:00:14]} Rb8 {[%emt 0:00:21]} 21. Nb1 {[%emt 0:00:27]} Nb5 {[%emt 0:00:23]} 22. Ra5 {[%emt 0:00:11]} Bc8 {[%emt 0:02:37]} 23. Nbd2 {[%emt 0:00:07]} Bd7 {[%emt 0:01:31]} 24. h3 {[%emt 0:00:21]} g6 {[%emt 0:00:15]} 25. Nc4 {[%emt 0:00:07]} Bxh3 {[%emt 0:00:47]} 26. Bxh3 {[%emt 0:01:32]} Qxf3 {[%emt 0:00:01]} 27. Rxb5 {[%emt 0:02:20]} Rxb5 {[%emt 0:00:04]} 28. Bd7 {[%emt 0:00:01]} Rbb8 {[%emt 0:00:09]} 29. Bxe8 {[%emt 0:00:02]} Rxe8 {[%emt 0:00:01]} 30. Re3 {[%emt 0:00:09]} Qf6 {[%emt 0:00:01]} 31. Kg2 {[%emt 0:00:25]} h5 {[%emt 0:00:03]} 32. Qa4 {[%emt 0:00:02]} Rc8 {[%emt 0:00:40]} 33. Qd7 {[%emt 0:00:13]} Qd8 {[%emt 0:00:00]} 34. Qb5 {[%emt 0:00:05]} Rb8 {[%emt 0:00:13]} 35. Qc6 {[%emt 0:00:02]} Rc8 {[%emt 0:00:04]} 36. Qb5 {[%emt 0:00:01]} Ra8 {[%emt 0:00:01]} 37. Qc6 {[%emt 0:00:12]} Ra7 {[%emt 0:01:03]} 38. e5 {[%emt 0:00:07]} Rc7 {[%emt 0:00:24]} 39. Qb6 {[%emt 0:00:01]} dxe5 {[%emt 0:00:12]} 40. d6 {[%emt 0:00:01]} Qa8+ {[%emt 0:00:38]} 41. Kh2 {[%emt 0:00:02]} Rc6 {[%emt 0:00:01]} 42. Qb5 {[%emt 0:00:08]} Bxd6 {[%emt 0:00:02]} 43. Nxe5 {[%emt 0:00:13]} Bxe5 {[%emt 0:00:24]} 44. Rxe5 Qc8 {[%emt 0:00:10]} 45. Qe2 {[%emt 0:00:03]} Re6 {[%emt 0:00:07]} 46. b3 {[%emt 0:00:13]} Rxe5 {[%emt 0:00:07]} 47. Qxe5 {[%emt 0:00:00]} Qf5 {[%emt 0:00:03]} 48. Qe8+ {[%emt 0:00:09]} Kg7 {[%emt 0:00:01]} 49. Qe3 {[%emt 0:00:01]} Qd5 {[%emt 0:00:06]} 50. Qe7 {[%emt 0:00:08]} Qxb3 {[%emt 0:00:10]} 51. Qe5+ {[%emt 0:00:02]} Kg8 {[%emt 0:00:19]} 52. Qxc5 {[%emt 0:00:02]} Qb2 {[%emt 0:00:04]} 53. Kg2 {[%emt 0:00:04]} Qc3 {[%emt 0:00:01]} 54. Qb6 {[%emt 0:00:08]} b3 {[%emt 0:00:03]} 55. Qb8+ {[%emt 0:00:05]} Kg7 {[%emt 0:00:02]} 56. Qb5 {[%emt 0:00:05]} b2 {[%emt 0:00:19]} 57. Kh2 {[%emt 0:00:07]} Qd4 {[%emt 0:00:20]} 58. f4 {[%emt 0:00:10]} h4 {[%emt 0:00:13]} 59. gxh4 {[%emt 0:00:05]} Qf2+ {[%emt 0:00:12]} 60. Kh3 {[%emt 0:00:03]} Qf3+ {[%emt 0:00:06]} 61. Kh2 {[%emt 0:00:03]} Qxf4+ {[%emt 0:00:08]} 62. Kh3 {[%emt 0:00:08]} Qf5+ {[%emt 0:00:02]} 0-1

[Event "ESP-ch Rapid 2018"]
[Site "Linares"]
[Date "2018.08.19"]
[Round "9"]
[White "Garcia Romero, Benjamin Abel"]
[Black "Matnadze, Ana"]
[Result "0-1"]
[ECO "B16"]
[WhiteElo "2230"]
[BlackElo "2378"]
[Annotator "NA"]
[PlyCount "58"]
[EventDate "2018.08.19"]
[EventType "team-tourn"]
[EventCountry "ESP"]
[SourceTitle "playchess.com"]
[Source "ChessBase"]
[SourceQuality "1"]
[TimeControl "900+5"]

1. e4 {[%emt 0:00:00]} c6 {[%emt 0:00:00]} 2. d4 {[%emt 0:00:03]} d5 {[%emt 0:00:00]} 3. Nd2 {[%emt 0:00:05]} dxe4 {[%emt 0:00:00]} 4. Nxe4 {[%emt 0:00:01]} Nf6 {[%emt 0:00:01]} 5. Nxf6+ {[%emt 0:00:31]} gxf6 {[%emt 0:00:02]} 6. Nf3 {[%emt 0:00:16]} Qc7 {[%emt 0:00:04]} 7. c4 {[%emt 0:00:58]} Bg4 {[%emt 0:00:09]} 8. Be2 {[%emt 0:00:12]} Nd7 {[%emt 0:00:05]} 9. O-O {[%emt 0:00:21]} e6 {[%emt 0:00:21]} 10. Nh4 {[%emt 0:00:23]} Bxe2 {[%emt 0:00:24]} 11. Qxe2 {[%emt 0:00:02]} O-O-O {[%emt 0:00:16]} 12. Be3 {[%emt 0:01:36]} h5 {[%emt 0:00:19]} 13. g3 {[%emt 0:00:54]} f5 {[%emt 0:01:17]} 14. b4 {[%emt 0:00:15]} Rg8 {[%emt 0:00:34]} 15. Qf3 {[%emt 0:00:54]} Bxb4 {[%emt 0:00:29]} 16. c5 {[%emt 0:00:02]} Nf6 {[%emt 0:00:20]} 17. Rab1 {[%emt 0:00:18]} Nd5 {[%emt 0:00:12]} 18. Ng2 {[%emt 0:01:21]} Ba5 {[%emt 0:00:39]} 19. Rb3 {[%emt 0:00:31]} h4 {[%emt 0:01:31]} 20. Rfb1 {[%emt 0:00:09]} hxg3 {[%emt 0:00:07]} 21. fxg3 {[%emt 0:00:57]} Rg4 {[%emt 0:00:41]} 22. Nf4 {[%emt 0:00:39]} Nxe3 {[%emt 0:02:22]} 23. Qxe3 {[%emt 0:00:04]} b6 {[%emt 0:00:21]} 24. Ra3 {[%emt 0:00:42]} Qd7 {[%emt 0:00:45]} 25. Ne2 {[%emt 0:00:26]} Qd5 {[%emt 0:00:37]} 26. Kf2 {[%emt 0:01:02]} Rh8 {[%emt 0:00:08]} 27. h4 {[%emt 0:00:11]} Rhxh4 {[%emt 0:00:05]} 28. Qf3 {[%emt 0:01:57]} Rh2+ {[%emt 0:00:12]} 29. Ke3 {[%emt 0:00:01]} Re4+ {[%emt 0:00:26]} 0-1

[Event "ESP-ch Rapid 2018"]
[Site "Linares"]
[Date "2018.08.19"]
[Round "9"]
[White "Garcia Garcia, Adrian Antonio"]
[Black "Lloret Mauri, Jaime"]
[Result "1-0"]
[ECO "C01"]
[WhiteElo "2179"]
[BlackElo "2035"]
[Annotator "NA"]
[PlyCount "71"]
[EventDate "2018.08.19"]
[EventType "team-tourn"]
[EventCountry "ESP"]
[SourceTitle "playchess.com"]
[Source "ChessBase"]
[SourceQuality "1"]
[TimeControl "900+5"]

1. e4 {[%emt 0:00:00]} e6 {[%emt 0:00:00]} 2. d4 {[%emt 0:00:00]} d5 {[%emt 0:00:00]} 3. exd5 {[%emt 0:00:00]} exd5 {[%emt 0:00:00]} 4. c4 {[%emt 0:00:00]} Nf6 {[%emt 0:00:04]} 5. Nf3 {[%emt 0:00:02]} c6 {[%emt 0:00:03]} 6. h3 {[%emt 0:00:17]} Be6 {[%emt 0:00:02]} 7. c5 {[%emt 0:00:04]} b6 {[%emt 0:00:09]} 8. cxb6 {[%emt 0:00:02]} axb6 {[%emt 0:00:02]} 9. Bd3 {[%emt 0:00:02]} Bd6 {[%emt 0:00:08]} 10. O-O {[%emt 0:00:03]} O-O {[%emt 0:00:06]} 11. Bg5 {[%emt 0:00:06]} Nbd7 {[%emt 0:00:01]} 12. Nbd2 {[%emt 0:00:17]} Qc7 {[%emt 0:00:02]} 13. a3 {[%emt 0:00:14]} h6 {[%emt 0:00:01]} 14. Bxf6 {[%emt 0:00:11]} Nxf6 {[%emt 0:00:02]} 15. Rc1 {[%emt 0:00:01]} c5 {[%emt 0:00:09]} 16. Bb1 {[%emt 0:00:09]} c4 {[%emt 0:00:03]} 17. Re1 {[%emt 0:00:10]} b5 {[%emt 0:00:11]} 18. Ne5 {[%emt 0:00:22]} b4 {[%emt 0:00:01]} 19. axb4 {[%emt 0:00:15]} Bxb4 {[%emt 0:00:02]} 20. Re3 {[%emt 0:00:06]} Qb6 {[%emt 0:00:23]} 21. Ndf3 {[%emt 0:00:13]} Rfb8 {[%emt 0:00:30]} 22. g4 {[%emt 0:01:40]} Bf8 {[%emt 0:00:29]} 23. Re2 {[%emt 0:00:08]} Qb3 {[%emt 0:00:28]} 24. Bc2 {[%emt 0:00:31]} Qb6 {[%emt 0:00:19]} 25. g5 {[%emt 0:00:13]} hxg5 {[%emt 0:00:18]} 26. Nxg5 {[%emt 0:00:01]} Ra2 {[%emt 0:00:02]} 27. Rb1 {[%emt 0:00:16]} Qa6 {[%emt 0:04:33]} 28. f4 {[%emt 0:01:00]} Rb7 {[%emt 0:00:50]} 29. Rg2 {[%emt 0:00:26]} Kh8 {[%emt 0:00:35]} 30. Qe1 {[%emt 0:00:32]} Qa7 {[%emt 0:00:25]} 31. Qh4+ {[%emt 0:00:05]} Kg8 {[%emt 0:00:04]} 32. Bh7+ {[%emt 0:01:07]} Kh8 {[%emt 0:00:01]} 33. Nxe6 {[%emt 0:00:34]} Nxh7 {[%emt 0:00:07]} 34. Nxf8 {[%emt 0:00:39]} Qxd4+ {[%emt 0:00:03]} 35. Kh1 {[%emt 0:00:04]} Qe4 {[%emt 0:00:15]} 36. Neg6+ 1-0

[Event "ESP-ch Rapid 2018"]
[Site "Linares"]
[Date "2018.08.19"]
[Round "9"]
[White "Perera Borrego, Maria Adela"]
[Black "Vazquez Pino, Miguel A"]
[Result "0-1"]
[ECO "A46"]
[WhiteElo "2177"]
[BlackElo "1909"]
[Annotator "NA"]
[PlyCount "84"]
[EventDate "2018.08.19"]
[EventType "team-tourn"]
[EventCountry "ESP"]
[SourceTitle "playchess.com"]
[Source "ChessBase"]
[SourceQuality "1"]
[TimeControl "900+5"]

1. d4 {[%emt 0:00:00]} Nf6 {[%emt 0:00:00]} 2. Nf3 {[%emt 0:00:00]} e6 {[%emt 0:00:00]} 3. g3 {[%emt 0:00:02]} c5 {[%emt 0:00:00]} 4. c3 {[%emt 0:00:02]} d5 {[%emt 0:00:04]} 5. Bg2 {[%emt 0:00:01]} Nc6 {[%emt 0:00:03]} 6. O-O {[%emt 0:00:03]} Be7 {[%emt 0:00:02]} 7. b3 {[%emt 0:00:14]} b6 {[%emt 0:00:01]} 8. Bb2 {[%emt 0:00:02]} Bb7 {[%emt 0:00:01]} 9. Nbd2 {[%emt 0:00:06]} O-O {[%emt 0:00:02]} 10. Re1 {[%emt 0:00:25]} Rc8 {[%emt 0:00:32]} 11. Rc1 {[%emt 0:00:01]} h6 {[%emt 0:00:21]} 12. h3 {[%emt 0:00:11]} cxd4 {[%emt 0:00:49]} 13. cxd4 {[%emt 0:00:11]} Nb4 {[%emt 0:00:04]} 14. a3 {[%emt 0:00:21]} Rxc1 {[%emt 0:00:23]} 15. Qxc1 {[%emt 0:00:07]} Nc6 {[%emt 0:00:02]} 16. Ne5 {[%emt 0:01:17]} Nxe5 {[%emt 0:00:06]} 17. dxe5 {[%emt 0:00:02]} Nd7 {[%emt 0:00:04]} 18. e4 {[%emt 0:00:44]} Nc5 {[%emt 0:00:12]} 19. Qc2 {[%emt 0:01:16]} dxe4 {[%emt 0:00:18]} 20. Nxe4 {[%emt 0:01:14]} Qa8 {[%emt 0:00:03]} 21. b4 {[%emt 0:02:01]} Nxe4 {[%emt 0:00:02]} 22. Bxe4 {[%emt 0:00:01]} Bxe4 {[%emt 0:00:13]} 23. Rxe4 {[%emt 0:00:33]} Rd8 {[%emt 0:00:15]} 24. Qe2 {[%emt 0:00:44]} Bg5 {[%emt 0:00:20]} 25. Bc3 {[%emt 0:01:22]} Qc6 {[%emt 0:00:27]} 26. Be1 {[%emt 0:01:25]} Qc1 {[%emt 0:00:10]} 27. Kh2 {[%emt 0:02:26]} Qxa3 {[%emt 0:00:15]} 28. h4 {[%emt 0:00:05]} Be7 {[%emt 0:00:05]} 29. Rf4 {[%emt 0:00:49]} Qd3 {[%emt 0:00:09]} 30. Qh5 {[%emt 0:00:07]} Qg6 {[%emt 0:00:08]} 31. Qf3 {[%emt 0:00:05]} Rd5 {[%emt 0:00:38]} 32. h5 {[%emt 0:00:08]} Qd3 {[%emt 0:00:19]} 33. Rxf7 {[%emt 0:00:45]} Qxf3 {[%emt 0:00:02]} 34. Rxf3 {[%emt 0:00:01]} Rxe5 {[%emt 0:00:01]} 35. Bc3 {[%emt 0:00:10]} Rxh5+ 36. Kg2 a5 {[%emt 0:00:12]} 37. bxa5 {[%emt 0:00:08]} bxa5 {[%emt 0:00:04]} 38. Rd3 {[%emt 0:00:04]} Rd5 {[%emt 0:00:17]} 39. Re3 {[%emt 0:00:19]} Kf7 {[%emt 0:00:10]} 40. Kf3 {[%emt 0:00:02]} Bc5 {[%emt 0:00:07]} 41. Ke4 {[%emt 0:00:40]} Bxe3 {[%emt 0:00:05]} 42. Kxe3 {[%emt 0:00:01]} Rb5 {[%emt 0:00:06]} 0-1

[Event "ESP-ch Rapid 2018"]
[Site "Linares"]
[Date "2018.08.19"]
[Round "9"]
[White "Dominguez Alcon, Victor"]
[Black "Fernandez Garcia, Jose Miguel"]
[Result "0-1"]
[ECO "B41"]
[WhiteElo "2172"]
[BlackElo "2404"]
[Annotator "NA"]
[PlyCount "64"]
[EventDate "2018.08.19"]
[EventType "team-tourn"]
[EventCountry "ESP"]
[SourceTitle "playchess.com"]
[Source "ChessBase"]
[SourceQuality "1"]
[TimeControl "900+5"]

1. e4 {[%emt 0:00:00]} c5 {[%emt 0:00:00]} 2. Nf3 {[%emt 0:00:00]} e6 {[%emt 0:00:00]} 3. d4 {[%emt 0:00:03]} cxd4 {[%emt 0:00:00]} 4. Nxd4 {[%emt 0:00:01]} a6 {[%emt 0:00:02]} 5. c4 {[%emt 0:00:21]} Nf6 {[%emt 0:00:03]} 6. Nc3 {[%emt 0:00:03]} Qc7 {[%emt 0:00:01]} 7. Nc2 {[%emt 0:01:23]} b6 {[%emt 0:00:08]} 8. Bd3 {[%emt 0:00:58]} Bb7 {[%emt 0:00:24]} 9. O-O {[%emt 0:00:23]} d6 {[%emt 0:00:02]} 10. Kh1 {[%emt 0:01:05]} Nbd7 {[%emt 0:00:05]} 11. b3 {[%emt 0:01:50]} Be7 {[%emt 0:00:29]} 12. Bb2 {[%emt 0:00:03]} h5 {[%emt 0:00:04]} 13. Ne3 {[%emt 0:01:00]} Ne5 {[%emt 0:00:43]} 14. Bc2 {[%emt 0:00:48]} Neg4 {[%emt 0:00:08]} 15. Nxg4 {[%emt 0:02:45]} hxg4 {[%emt 0:00:28]} 16. g3 {[%emt 0:00:45]} O-O-O 17. Qd4 {[%emt 0:01:03]} Rh3 {[%emt 0:00:35]} 18. Kg2 {[%emt 0:00:14]} Rdh8 {[%emt 0:00:20]} 19. Rh1 {[%emt 0:00:03]} Nd7 {[%emt 0:00:15]} 20. Na4 {[%emt 0:01:03]} Bf6 {[%emt 0:00:19]} 21. Qe3 {[%emt 0:00:29]} Bxb2 {[%emt 0:02:53]} 22. Nxb2 {[%emt 0:00:02]} Ne5 {[%emt 0:00:11]} 23. Rad1 {[%emt 0:01:20]} Nf3 {[%emt 0:00:58]} 24. Na4 {[%emt 0:00:07]} b5 {[%emt 0:01:00]} 25. Nb6+ {[%emt 0:00:03]} Kb8 {[%emt 0:00:01]} 26. c5 {[%emt 0:00:24]} Rxh2+ {[%emt 0:00:21]} 27. Rxh2 {[%emt 0:00:01]} Rxh2+ {[%emt 0:00:02]} 28. Kf1 {[%emt 0:00:02]} Rh1+ {[%emt 0:00:21]} 29. Ke2 {[%emt 0:00:02]} Rxd1 {[%emt 0:00:19]} 30. Kxd1 {[%emt 0:00:02]} dxc5 {[%emt 0:00:15]} 31. Qf4 {[%emt 0:00:25]} Qxf4 {[%emt 0:00:18]} 32. gxf4 {[%emt 0:00:04]} Kc7 0-1